bitfinex/quotes_BTCUSD_20241226
["timestamp","ask_amount","ask_price","bid_price","bid_amount"]
[1735172968539,0.67405363,99401.0,99400.0,0.72937443]
[1735172968540,0.63188606,99401.0,99400.0,0.72937443]
[1735172968751,0.53188606,99401.0,99400.0,0.72937443]
[1735172968955,0.53988606,99401.0,99400.0,0.73037443]
[1735172969164,0.65165105,99401.0,99400.0,0.72937443]
[1735172969369,0.65165105,99401.0,99400.0,0.72946033]
[1735172969570,0.65165105,99401.0,99400.0,0.66916455]
[1735172969571,0.81604737,99401.0,99400.0,0.66916455]
[1735172969748,1.14802517,99401.0,99400.0,0.62018255]
[1735172969988,1.15902517,99401.0,99400.0,0.60106155]
[1735172970168,1.15902517,99401.0,99400.0,0.0010859]
[1735172970400,0.434011,99372.0,99371.0,0.0002]
[1735172970606,0.53799732,99372.0,99371.0,0.0002]
[1735172971017,0.63165755,99372.0,99371.0,0.0002]
[1735172971229,0.53799732,99372.0,99371.0,0.0002]
[1735172971429,0.58499732,99372.0,99371.0,0.0002]
[1735172971772,0.58499732,99372.0,99371.0,0.00071896]
[1735172971960,0.68799732,99372.0,99371.0,0.00071896]
[1735172972177,0.68499732,99372.0,99371.0,0.00071896]
[1735172972383,0.78898364,99372.0,99371.0,0.00071896]
[1735172972594,0.82574612,99372.0,99371.0,0.00071896]
[1735172972794,0.82774612,99372.0,99371.0,0.00071896]
[1735172973503,0.82574612,99372.0,99371.0,0.00071896]
[1735172973678,0.82574612,99372.0,99371.0,0.00171896]
[1735172973679,0.83174612,99372.0,99371.0,0.00171896]
[1735172973998,0.83174612,99372.0,99351.0,2.84e-05]
[1735172973999,0.373,99352.0,99351.0,2.84e-05]
[1735172974200,0.373,99352.0,99311.0,0.0002]
[1735172974201,0.534067,99337.0,99311.0,0.0002]
[1735172974404,0.63805332,99337.0,99311.0,0.0002]
[1735172974608,0.1,99332.0,99311.0,0.0002]
[1735172974853,0.22698632,99332.0,99311.0,0.0002]
[1735172975062,0.44309165,99332.0,99311.0,0.0002]
[1735172975266,0.54309165,99332.0,99311.0,0.0002]
[1735172975444,0.1,99320.0,99311.0,0.0002]
[1735172975676,0.37698632,99320.0,99311.0,0.0002]
[1735172975859,0.63808132,99320.0,99311.0,0.0002]
[1735172976070,0.53808132,99320.0,99311.0,0.0002]
[1735172976426,0.63808132,99320.0,99311.0,0.0002]
[1735172976638,0.63908132,99320.0,99311.0,0.0002]
[1735172976840,0.53908132,99320.0,99311.0,0.0002]
[1735172977045,0.53808132,99320.0,99311.0,0.0002]
[1735172977269,0.63410645,99320.0,99311.0,0.0002]
[1735172977444,0.63610645,99320.0,99311.0,0.0002]
[1735172978328,0.54790551,99320.0,99311.0,0.0002]
[1735172978547,0.44790551,99320.0,99311.0,0.0002]
[1735172978738,0.11681051,99320.0,99311.0,0.0002]
[1735172978958,0.11381051,99320.0,99311.0,0.0002]
[1735172979362,0.11681051,99320.0,99311.0,0.0002]
[1735172979561,0.11481051,99320.0,99311.0,0.0002]
[1735172979774,0.11181051,99320.0,99311.0,0.0002]
[1735172979977,0.11381051,99320.0,99311.0,0.0002]
[1735172980189,0.26381051,99320.0,99311.0,0.0002]
[1735172980391,0.26181051,99320.0,99311.0,0.0002]
[1735172980651,0.26281051,99320.0,99311.0,0.0002]
[1735172981189,0.26381051,99320.0,99311.0,0.0002]
[1735172981396,0.26181051,99320.0,99311.0,0.0002]
[1735172981600,0.26381051,99320.0,99311.0,0.0002]
[1735172982186,0.10598632,99320.0,99319.0,0.0001858]
[1735172983561,0.10798632,99320.0,99319.0,0.0001858]
[1735172984137,0.10398632,99320.0,99319.0,0.0001858]
[1735172984313,0.10898632,99320.0,99319.0,0.0001858]
[1735172984496,0.10498632,99320.0,99319.0,0.0001858]
[1735172984921,0.10898632,99320.0,99319.0,0.0001858]
[1735172985172,0.10498632,99320.0,99319.0,0.0001858]
[1735172985578,0.26608132,99320.0,99319.0,0.0001858]
[1735172985882,0.26508132,99320.0,99319.0,0.0001858]
[1735172986094,0.26708132,99320.0,99319.0,0.0001858]
[1735172986478,0.26508132,99320.0,99319.0,0.0001858]
[1735172986873,0.35980655,99320.0,99319.0,0.0001858]
[1735172987248,0.36180655,99320.0,99319.0,0.0001858]
[1735172987446,0.39008132,99320.0,99319.0,0.0001858]
[1735172987687,0.28808132,99320.0,99319.0,0.0001858]
[1735172987866,0.26708132,99320.0,99319.0,0.0001858]
[1735172988060,0.26508132,99320.0,99319.0,0.0001858]
[1735172988492,0.26708132,99320.0,99319.0,0.0001858]
[1735172988919,0.10598632,99320.0,99319.0,0.0001858]
[1735172989121,0.002,99320.0,99319.0,0.0001858]
[1735172989389,0.002,99320.0,99319.0,0.1271858]
[1735172989390,0.001,99320.0,99319.0,0.1271858]
[1735172989593,0.001,99320.0,99319.0,0.13167877]
[1735172989975,0.00051948,99332.0,99319.0,0.13167877]
[1735172990178,0.10398632,99331.0,99319.0,0.29277377]
[1735172990381,0.001,99320.0,99319.0,0.13167877]
[1735172990810,0.10398632,99331.0,99319.0,0.13167877]
[1735172991592,0.10398632,99331.0,99320.0,0.11657757]
[1735172992027,0.10398632,99331.0,99321.0,0.00453832]
[1735172993588,0.10398632,99331.0,99321.0,0.00553832]
[1735172994116,0.10415812,99331.0,99321.0,0.00553832]
[1735172994305,0.10415812,99331.0,99321.0,0.00653832]
[1735172994484,0.10415812,99331.0,99321.0,0.00553832]
[1735172994885,0.10415812,99331.0,99321.0,0.00653832]
[1735172995097,0.0001718,99331.0,99321.0,0.00553832]
[1735172995360,0.0001718,99331.0,99326.0,0.161084]
[1735172995688,0.0001718,99331.0,99328.0,0.161082]
[1735172995930,0.0001718,99331.0,99327.0,0.00446784]
[1735172996170,0.0001718,99331.0,99326.0,0.161084]
[1735172996376,0.0001718,99331.0,99328.0,0.00446727]
[1735172996588,0.0001718,99331.0,99327.0,0.00446784]
[1735172996790,0.0001718,99331.0,99329.0,0.0044667]
[1735172996993,0.0001718,99331.0,99328.0,0.00546727]
[1735172997173,0.0001718,99331.0,99330.0,0.00446613]
[1735172997325,0.0001718,99331.0,99329.0,0.0044667]
[1735172997535,0.0001718,99331.0,99328.0,0.001]
[1735172997720,0.0001718,99331.0,99330.0,0.00446613]
[1735172997937,0.0001718,99331.0,99326.0,0.161084]
[1735172998138,0.0001718,99331.0,99330.0,0.00446613]
[1735172998383,0.0001718,99331.0,99328.0,0.002]
[1735172998555,0.0001718,99331.0,99330.0,0.00446613]
[1735172998761,0.0001718,99331.0,99329.0,0.0054667]
[1735172998960,0.0001718,99331.0,99330.0,0.00446613]
[1735173000406,0.0001718,99331.0,99330.0,0.08176613]
[1735173000586,0.0001718,99331.0,99330.0,0.13146613]
[1735173001305,0.0011718,99331.0,99330.0,0.13446613]
[1735173003342,0.10515812,99331.0,99330.0,0.13446613]
[1735173003829,0.10515812,99331.0,99330.0,0.00746613]
[1735173004476,0.43923512,99331.0,99330.0,0.00546613]
[1735173004686,0.43823512,99331.0,99330.0,0.00446613]
[1735173004889,0.11192728,99331.0,99330.0,0.00546613]
[1735173005101,0.11192728,99331.0,99330.0,0.00646613]
[1735173005520,0.11192728,99331.0,99330.0,0.00546613]
[1735173005722,0.13792728,99331.0,99330.0,0.00446613]
[1735173005930,0.23792728,99331.0,99330.0,0.00446613]
[1735173006592,0.38792728,99331.0,99330.0,0.00446613]
[1735173007006,0.39292728,99331.0,99330.0,0.00446613]
[1735173007217,0.38992728,99331.0,99330.0,0.00446613]
[1735173007441,0.38492728,99331.0,99330.0,0.00446613]
[1735173007662,0.38892728,99331.0,99330.0,0.00446613]
[1735173007875,0.28892728,99331.0,99330.0,0.00446613]
[1735173008299,0.26992728,99331.0,99330.0,0.00446613]
[1735173008926,0.26892728,99331.0,99330.0,0.00446613]
[1735173009122,0.27092728,99331.0,99330.0,0.00446613]
[1735173010100,0.26392728,99331.0,99330.0,0.00446613]
[1735173010520,0.26592728,99331.0,99330.0,0.00446613]
[1735173010722,0.26792728,99331.0,99330.0,0.00446613]
[1735173010926,0.26392728,99331.0,99330.0,0.00446613]
[1735173011073,0.26792728,99331.0,99330.0,0.00446613]
[1735173012440,0.29092728,99331.0,99330.0,0.00446613]
[1735173013204,0.26792728,99331.0,99330.0,0.00446613]
[1735173013801,0.357868,99331.0,99330.0,0.00446613]
[1735173014023,0.351868,99331.0,99330.0,0.00446613]
[1735173014232,0.356868,99331.0,99330.0,0.00446613]
[1735173014655,0.354868,99331.0,99330.0,0.00446613]
[1735173014866,0.357868,99331.0,99330.0,0.00446613]
[1735173015088,0.11992728,99331.0,99330.0,0.00446613]
[1735173015525,0.28100428,99331.0,99330.0,0.00446613]
[1735173016487,0.42900428,99331.0,99330.0,0.00446613]
[1735173016912,0.42400428,99331.0,99330.0,0.00446613]
[1735173017114,0.44700428,99331.0,99330.0,0.00446613]
[1735173017315,0.161095,99320.0,99310.0,8.58e-05]
[1735173017517,0.26508132,99320.0,99310.0,8.58e-05]
[1735173018457,0.26508132,99320.0,99319.0,0.0021858]
[1735173019382,0.35537684,99320.0,99319.0,0.0021858]
[1735173019588,0.50537684,99320.0,99319.0,0.0021858]
[1735173019794,0.50537684,99320.0,99319.0,0.0011858]
[1735173020192,0.50637684,99320.0,99319.0,0.0011858]
[1735173020374,0.51446586,99320.0,99319.0,0.0011858]
[1735173020596,0.42317034,99320.0,99319.0,0.0001858]
[1735173020799,0.27317034,99320.0,99319.0,0.0001858]
[1735173021004,0.27517034,99320.0,99319.0,0.0001858]
[1735173021208,0.10798632,99320.0,99319.0,0.0001858]
[1735173021421,0.10598632,99320.0,99319.0,0.0001858]
[1735173021623,0.10398632,99320.0,99319.0,0.0001858]
[1735173021828,0.10698632,99320.0,99319.0,0.0001858]
[1735173022038,0.10398632,99320.0,99319.0,0.0001858]
[1735173022440,0.10598632,99320.0,99319.0,0.0001858]
[1735173022650,0.10398632,99320.0,99319.0,0.0001858]
[1735173023071,0.10598632,99320.0,99319.0,0.0001858]
[1735173023649,0.10498632,99320.0,99319.0,0.0001858]
[1735173023852,0.10498632,99320.0,99319.0,0.0011858]
[1735173024056,0.001,99320.0,99319.0,0.0501858]
[1735173024257,0.001,99320.0,99319.0,0.12669258]
[1735173024458,0.09030397,99329.0,99328.0,0.237582]
[1735173024709,0.09030397,99329.0,99328.0,0.386582]
[1735173025462,0.09030397,99329.0,99328.0,0.286582]
[1735173025868,0.00051948,99332.0,99328.0,0.286582]
[1735173026213,0.00051948,99332.0,99329.0,0.0010066]
[1735173027036,0.00051948,99332.0,99330.0,0.161079]
[1735173027247,0.00051948,99332.0,99330.0,0.1620856]
[1735173027454,0.00051948,99332.0,99328.0,0.1255]
[1735173027674,0.00051948,99332.0,99329.0,0.002]
[1735173028079,0.00051948,99332.0,99330.0,0.161079]
[1735173028287,0.0011718,99331.0,99330.0,0.163079]
[1735173028489,0.0011718,99331.0,99330.0,0.161079]
[1735173028624,0.0021718,99331.0,99330.0,0.161079]
[1735173028824,0.0011718,99331.0,99330.0,0.16208568]
[1735173029241,0.0011718,99331.0,99330.0,0.16708568]
[1735173029679,0.0011718,99331.0,99330.0,0.16408568]
[1735173029889,0.00051948,99332.0,99331.0,0.0765]
[1735173030099,0.00051948,99332.0,99331.0,0.1265065]
[1735173031172,0.15,99372.0,99351.0,0.161044]
[1735173031407,0.10398632,99371.0,99360.0,0.27760657]
[1735173031628,0.10398632,99371.0,99360.0,0.11657757]
[1735173031877,0.10398632,99371.0,99345.0,0.1255]
[1735173032087,0.10398632,99364.0,99345.0,0.1255]
[1735173032284,0.25398632,99361.0,99332.0,0.1255]
[1735173032520,0.161054,99346.0,99332.0,0.1255]
[1735173032665,0.10398632,99345.0,99332.0,0.286575]
[1735173032863,0.10398632,99345.0,99335.0,0.11657757]
[1735173033459,0.10398632,99345.0,99336.0,0.161069]
[1735173033945,0.16104,99355.0,99336.0,0.161069]
[1735173034151,0.10398632,99354.0,99336.0,0.161069]
[1735173034384,0.001,99345.0,99335.0,0.12457757]
[1735173034580,0.10398632,99344.0,99335.0,0.11857757]
[1735173035043,0.10398632,99344.0,99336.0,0.006]
[1735173035676,0.10398632,99344.0,99336.0,0.009]
[1735173036150,0.10398632,99344.0,99336.0,0.006]
[1735173036334,0.161066,99338.0,99336.0,0.006]
[1735173036492,0.10398632,99337.0,99336.0,0.006]
[1735173036868,0.10398632,99337.0,99331.0,0.00015602]
[1735173037522,0.322139,99336.0,99331.0,0.00015602]
[1735173037859,0.10398632,99333.0,99331.0,0.00015602]
[1735173038283,0.161075,99332.0,99331.0,0.00015602]
[1735173038426,0.26506132,99332.0,99331.0,0.00015602]
[1735173039765,0.43806132,99332.0,99331.0,0.00015602]
[1735173040218,0.44006132,99332.0,99331.0,0.00015602]
[1735173041794,0.44206132,99332.0,99331.0,0.00015602]
[1735173042026,0.44006132,99332.0,99331.0,0.00024182]
[1735173042474,0.46152314,99332.0,99331.0,0.00024182]
[1735173042857,0.46052314,99332.0,99331.0,0.00024182]
[1735173043316,0.46252314,99332.0,99331.0,0.00024182]
[1735173043504,0.56650946,99332.0,99331.0,0.00024182]
[1735173043680,0.64410946,99332.0,99331.0,0.00024182]
[1735173043890,0.54012314,99332.0,99331.0,0.00024182]
[1735173044274,0.44223292,99332.0,99331.0,0.00024182]
[1735173048244,0.54223292,99332.0,99331.0,0.00024182]
[1735173049280,0.44223292,99332.0,99331.0,0.00024182]
[1735173050258,0.54223292,99332.0,99331.0,0.00024182]
[1735173050461,0.44223292,99332.0,99331.0,0.00024182]
[1735173051289,0.54223292,99332.0,99331.0,0.00024182]
[1735173052113,0.44223292,99332.0,99331.0,0.00024182]
[1735173052518,0.63253689,99332.0,99331.0,0.00024182]
[1735173053651,0.54223292,99332.0,99331.0,0.00024182]
[1735173053853,0.44223292,99332.0,99331.0,0.00024182]
[1735173054553,0.54223292,99332.0,99331.0,0.00024182]
[1735173056995,0.67768888,99332.0,99331.0,0.00024182]
[1735173057438,0.57768888,99332.0,99331.0,0.00024182]
[1735173058634,0.24361388,99332.0,99331.0,0.00024182]
[1735173058848,0.24361388,99332.0,99331.0,0.04644182]
[1735173059274,0.0041716,99332.0,99331.0,0.12894182]
[1735173059923,0.0001716,99332.0,99331.0,0.12894182]
[1735173060323,0.0041716,99332.0,99331.0,0.12894182]
[1735173060504,0.0001716,99332.0,99331.0,0.12894182]
[1735173060762,0.0001716,99332.0,99331.0,0.12994848]
[1735173060763,0.0011716,99332.0,99331.0,0.12994848]
[1735173061117,0.0041716,99332.0,99331.0,0.12994848]
[1735173061295,0.0051716,99332.0,99331.0,0.13494848]
[1735173061498,0.0001716,99332.0,99331.0,0.12994848]
[1735173061703,0.0001716,99332.0,99331.0,0.12894182]
[1735173061882,0.10415792,99332.0,99331.0,0.13094182]
[1735173062313,0.10415792,99332.0,99331.0,0.12894182]
[1735173062514,0.10415792,99332.0,99331.0,0.00024182]
[1735173062722,0.10415792,99332.0,99331.0,0.00224182]
[1735173062931,0.10515792,99332.0,99331.0,0.00724182]
[1735173063375,0.25515792,99332.0,99331.0,0.00724182]
[1735173063855,0.25415792,99332.0,99331.0,0.00224182]
[1735173064026,0.25415792,99332.0,99331.0,0.00124182]
[1735173064437,0.25415792,99332.0,99331.0,0.00024182]
[1735173064674,0.25415792,99332.0,99331.0,0.00524182]
[1735173065028,0.25515792,99332.0,99331.0,0.00524182]
[1735173065654,0.25415792,99332.0,99331.0,0.00524182]
[1735173065877,0.10515792,99332.0,99331.0,0.00024182]
[1735173066029,0.0011716,99332.0,99331.0,0.07674182]
[1735173066407,0.0031716,99332.0,99331.0,0.12344182]
[1735173066613,0.0011716,99332.0,99331.0,0.12344182]
[1735173066959,0.0021716,99332.0,99331.0,0.12344182]
[1735173067173,0.0011716,99332.0,99331.0,0.12344182]
[1735173067514,0.0021716,99332.0,99331.0,0.12344182]
[1735173067747,0.0011716,99332.0,99331.0,0.12344182]
[1735173067928,0.0001716,99332.0,99331.0,0.12344182]
[1735173068142,0.10415792,99332.0,99331.0,0.12344182]
[1735173068350,0.10415792,99332.0,99331.0,0.00024182]
[1735173069192,0.10515792,99332.0,99331.0,0.00124182]
[1735173069392,0.10415792,99332.0,99331.0,0.00124182]
[1735173069855,0.10715792,99332.0,99331.0,0.00124182]
[1735173070059,0.10415792,99332.0,99331.0,0.00124182]
[1735173070263,0.10515792,99332.0,99331.0,0.00024182]
[1735173070473,0.0011716,99332.0,99331.0,0.00024182]
[1735173070673,0.0011716,99332.0,99331.0,0.08044182]
[1735173070935,0.0011716,99332.0,99331.0,0.08244182]
[1735173071156,0.0001716,99332.0,99331.0,0.08344848]
[1735173071331,0.0001716,99332.0,99331.0,0.13014182]
[1735173072179,0.0001716,99332.0,99331.0,0.12814182]
[1735173072376,0.0001716,99332.0,99331.0,0.12914182]
[1735173073160,0.0001716,99332.0,99331.0,0.12814182]
[1735173073365,0.0011716,99332.0,99331.0,0.13514845]
[1735173073572,0.0011716,99332.0,99331.0,0.13814845]
[1735173073744,0.0001716,99332.0,99331.0,0.13214845]
[1735173073945,0.0001716,99332.0,99331.0,0.13714845]
[1735173074150,0.0001716,99332.0,99331.0,0.13414845]
[1735173074376,0.0001716,99332.0,99331.0,0.13714845]
[1735173074949,0.0001716,99332.0,99331.0,0.13414845]
[1735173075154,0.0001716,99332.0,99331.0,0.13114845]
[1735173075521,0.0011716,99332.0,99331.0,0.13714845]
[1735173075728,0.0001716,99332.0,99331.0,0.13114845]
[1735173075888,0.09019481,99378.0,99362.0,0.288926]
[1735173076125,0.10398632,99377.0,99368.0,0.27759457]
[1735173077159,0.10398632,99377.0,99368.0,0.11673359]
[1735173077593,0.10398632,99377.0,99368.0,0.11873359]
[1735173077795,0.10398632,99377.0,99369.0,0.161016]
[1735173078419,0.10398632,99377.0,99368.0,0.00315602]
[1735173078664,0.10398632,99377.0,99368.0,0.00715602]
[1735173079487,0.26499032,99377.0,99368.0,0.00315602]
[1735173079689,0.10398632,99377.0,99368.0,0.00315602]
[1735173080066,0.10398632,99377.0,99368.0,0.00015602]
[1735173080406,0.04169112,99391.0,99368.0,0.00415602]
[1735173080619,0.15,99388.0,99380.0,0.11657757]
[1735173080822,0.10398632,99387.0,99380.0,0.11657757]
[1735173081026,0.42595932,99387.0,99370.0,0.11657757]
[1735173081243,0.26497232,99387.0,99370.0,0.11657757]
[1735173081742,0.003,99377.0,99370.0,0.11657757]
[1735173082075,0.42595932,99387.0,99370.0,0.11657757]
[1735173082295,0.160995,99382.0,99370.0,0.11657757]
[1735173082464,0.10398632,99381.0,99370.0,0.11657757]
[1735173082885,0.10398632,99381.0,99370.0,0.11857757]
[1735173083340,0.10398632,99381.0,99370.0,0.11657757]
[1735173083560,0.10398632,99381.0,99370.0,0.11757757]
[1735173084957,0.10398632,99381.0,99370.0,0.11657757]
[1735173085798,0.10398632,99381.0,99371.0,0.0782]
[1735173087912,0.10398632,99381.0,99368.0,0.00015602]
[1735173087913,0.161016,99369.0,99368.0,0.00015602]
[1735173088131,0.49790232,99369.0,99368.0,0.00015602]
[1735173088334,0.52090232,99369.0,99368.0,0.00015602]
[1735173089211,0.52090232,99369.0,99332.0,8.58e-05]
[1735173089212,0.161074,99333.0,99332.0,8.58e-05]
[1735173089419,0.41506032,99333.0,99332.0,8.58e-05]
[1735173089621,0.43806032,99333.0,99332.0,0.00024165]
[1735173091101,0.10498632,99333.0,99332.0,0.00024165]
[1735173091522,0.10698632,99333.0,99332.0,0.00024165]
[1735173091731,0.10498632,99333.0,99332.0,0.00024165]
[1735173091935,0.001,99333.0,99332.0,0.00024165]
[1735173092142,0.002,99333.0,99332.0,0.00024165]
[1735173092356,0.00904158,99364.0,99332.0,0.00024165]
[1735173092357,0.15,99348.0,99332.0,0.00024165]
[1735173092561,0.10398632,99347.0,99338.0,0.11657757]
[1735173092900,0.161053,99346.0,99333.0,0.0486]
[1735173093107,0.161056,99344.0,99333.0,0.0486]
[1735173093308,0.10398632,99343.0,99333.0,0.0486]
[1735173093718,0.15,99354.0,99334.0,0.237771]
[1735173093886,0.161039,99355.0,99338.0,0.11657757]
[1735173093887,0.15,99352.0,99338.0,0.11657757]
[1735173094093,0.15,99350.0,99335.0,0.00100654]
[1735173094297,0.10398632,99349.0,99336.0,0.00100655]
[1735173094949,0.10398632,99349.0,99333.0,0.0486]
[1735173095155,0.322103,99347.0,99333.0,0.0486]
[1735173095356,0.10398632,99346.0,99333.0,0.0486]
[1735173095575,0.10398632,99346.0,99332.0,0.00024165]
[1735173096163,0.161054,99345.0,99332.0,0.00024165]
[1735173096369,0.161068,99337.0,99332.0,0.00024165]
[1735173096572,0.15,99335.0,99332.0,0.00024165]
[1735173096781,0.15,99333.0,99332.0,0.00024165]
[1735173097014,0.25398632,99333.0,99332.0,0.00024165]
[1735173097334,0.41506032,99333.0,99332.0,0.00024165]
[1735173098806,0.41506032,99333.0,99332.0,0.00124165]
[1735173099130,0.41506032,99333.0,99332.0,0.00024165]
[1735173099545,0.41606032,99333.0,99332.0,0.00024165]
[1735173100137,0.42006032,99333.0,99332.0,0.00024165]
[1735173100547,0.41906032,99333.0,99332.0,0.00024165]
[1735173101317,0.41506032,99333.0,99332.0,0.00024165]
[1735173101522,0.41506032,99333.0,99332.0,0.00124165]
[1735173101725,0.42106032,99333.0,99332.0,0.00124165]
[1735173101959,0.41506032,99333.0,99332.0,0.00024165]
[1735173102274,0.42306032,99333.0,99332.0,0.00024165]
[1735173102493,0.41506032,99333.0,99332.0,0.00024165]
[1735173102911,0.42206032,99333.0,99332.0,0.00024165]
[1735173103122,0.41706032,99333.0,99332.0,0.00024165]
[1735173103301,0.41806032,99333.0,99332.0,0.00024165]
[1735173103704,0.42006032,99333.0,99332.0,0.00024165]
[1735173106046,0.41706032,99333.0,99332.0,0.00024165]
[1735173106273,0.41506032,99333.0,99332.0,0.00024165]
[1735173106471,0.42006032,99333.0,99332.0,0.00024165]
[1735173112990,0.44306032,99333.0,99332.0,0.00024165]
[1735173114257,0.44306032,99333.0,99320.0,8.59e-05]
[1735173114258,0.284093,99321.0,99320.0,8.59e-05]
[1735173114460,0.284093,99321.0,99311.0,0.0002]
[1735173114461,0.2,99320.0,99311.0,0.0002]
[1735173114673,0.261108,99312.0,99311.0,0.0002]
[1735173114875,0.53809432,99312.0,99311.0,0.0002]
[1735173115952,0.62806978,99312.0,99311.0,0.0002]
[1735173116367,0.8320561,99312.0,99311.0,0.0002]
[1735173117410,0.72806978,99312.0,99311.0,0.0002]
[1735173118025,0.63706978,99312.0,99311.0,0.0002]
[1735173118202,0.64709432,99312.0,99311.0,0.0002]
[1735173118438,0.65633643,99312.0,99311.0,0.0002]
[1735173118642,0.66233643,99312.0,99311.0,0.0002]
[1735173118847,0.66733643,99312.0,99311.0,0.0002]
[1735173119022,0.77132275,99312.0,99311.0,0.0002]
[1735173120103,0.273,99301.0,99300.0,0.3578716]
[1735173120291,0.37698632,99301.0,99300.0,0.3578716]
[1735173120691,0.55690965,99301.0,99300.0,0.2331986]
[1735173120897,0.334173,99272.0,99271.0,0.00016]
[1735173121098,0.43815932,99272.0,99271.0,0.00016]
[1735173121328,0.43831491,99272.0,99271.0,0.00016]
[1735173122144,0.25414191,99272.0,99271.0,0.00016]
[1735173122713,0.25614191,99272.0,99271.0,0.00016]
[1735173123510,0.25614191,99272.0,99271.0,0.04936]
[1735173123709,0.10614191,99272.0,99271.0,0.04936]
[1735173123934,0.10714191,99272.0,99271.0,0.04936]
[1735173124142,0.10714191,99272.0,99271.0,0.0494458]
[1735173124460,0.11114191,99272.0,99271.0,0.0494458]
[1735173124882,0.10414191,99272.0,99271.0,0.0494458]
[1735173125133,0.10514191,99272.0,99271.0,0.0494458]
[1735173125584,0.10614191,99272.0,99271.0,0.0494458]
[1735173125995,0.10414191,99272.0,99271.0,0.0494458]
[1735173126210,0.10514191,99272.0,99271.0,0.0494458]
[1735173127472,0.10414191,99272.0,99271.0,0.0494458]
[1735173127670,0.10414191,99272.0,99271.0,0.0504458]
[1735173128209,0.10414191,99272.0,99271.0,0.0494458]
[1735173128366,0.10414191,99272.0,99271.0,0.0504458]
[1735173128978,0.10414191,99272.0,99271.0,0.0494458]
[1735173129546,0.10414191,99272.0,99271.0,0.0524458]
[1735173131224,0.10414191,99272.0,99271.0,0.0494458]
[1735173131426,0.10414191,99272.0,99271.0,0.0444458]
[1735173131657,0.10414191,99272.0,99271.0,0.0474458]
[1735173132487,0.10414191,99272.0,99271.0,0.0444458]
[1735173132687,0.10414191,99272.0,99271.0,0.0464458]
[1735173132915,0.26353237,99272.0,99271.0,0.0020858]
[1735173133115,0.28653237,99272.0,99271.0,0.0020858]
[1735173133953,0.28653237,99272.0,99271.0,8.58e-05]
[1735173134375,0.3823494,99272.0,99271.0,8.58e-05]
[1735173134585,0.495348,99271.0,99256.0,0.0492]
[1735173134795,0.10398632,99268.0,99256.0,0.0492]
[1735173135114,0.10398632,99268.0,99251.0,0.0002]
[1735173135367,0.334174,99271.0,99251.0,0.0002]
[1735173135368,0.69672648,99267.0,99251.0,0.0002]
[1735173135603,0.63816732,99267.0,99251.0,0.0002]
[1735173136047,0.77305251,99267.0,99251.0,0.0002]
[1735173136576,0.85390736,99267.0,99251.0,0.0002]
[1735173136773,0.95789368,99267.0,99251.0,0.0002]
[1735173136978,0.88813012,99267.0,99251.0,0.0002]
[1735173137177,0.82772012,99267.0,99251.0,0.0002]
[1735173137438,1.02146851,99267.0,99251.0,0.0002]
[1735173137661,0.86028751,99267.0,99251.0,0.0002]
[1735173137875,0.43819132,99252.0,99251.0,0.0002]
[1735173139363,0.44119132,99252.0,99251.0,0.0002]
[1735173139573,0.43819132,99252.0,99251.0,0.0002]
[1735173140429,0.44019132,99252.0,99251.0,0.0002]
[1735173140937,0.53395452,99252.0,99251.0,0.0002]
[1735173141138,0.52995452,99252.0,99251.0,0.0002]
[1735173141468,0.53195452,99252.0,99251.0,0.0002]
[1735173141706,0.54122482,99252.0,99251.0,0.0002]
[1735173141865,0.45146162,99252.0,99251.0,0.0002]
[1735173142454,0.161216,99246.0,99230.0,0.06576662]
[1735173142600,0.10398632,99245.0,99220.0,0.11657757]
[1735173142767,0.10398632,99245.0,99236.0,0.161231]
[1735173142988,0.10398632,99245.0,99231.0,0.161239]
[1735173143190,0.10398632,99245.0,99233.0,0.161236]
[1735173143838,0.161218,99244.0,99232.0,0.0806]
[1735173144180,0.10398632,99243.0,99232.0,0.0806]
[1735173144305,0.161223,99241.0,99232.0,0.0806]
[1735173144502,0.10398632,99240.0,99232.0,0.0806]
[1735173145140,0.10398632,99240.0,99232.0,0.0816]
[1735173145351,0.10398632,99240.0,99233.0,0.0473]
[1735173145570,0.10414182,99240.0,99233.0,0.0473]
[1735173145781,0.26536682,99240.0,99233.0,0.0473]
[1735173146558,0.10414182,99240.0,99233.0,0.04706]
[1735173148309,0.10414182,99240.0,99233.0,0.05006]
[1735173148523,0.10414182,99240.0,99233.0,0.04682]
[1735173148671,0.10414182,99240.0,99233.0,0.04674]
[1735173148905,0.10414182,99240.0,99233.0,0.04974]
[1735173151434,0.10414182,99240.0,99233.0,0.0497]
[1735173151656,0.10414182,99240.0,99233.0,0.04962]
[1735173153959,0.26536782,99240.0,99233.0,0.04972]
[1735173154632,0.26536782,99240.0,99233.0,0.04672]
[1735173155577,0.26536782,99240.0,99233.0,0.0001]
[1735173155578,0.161234,99235.0,99233.0,0.0001]
[1735173155859,0.10398632,99234.0,99233.0,0.0001]
[1735173156907,0.10398632,99234.0,99233.0,0.0011]
[1735173157411,0.10398632,99234.0,99233.0,0.0001]
[1735173157614,0.10398632,99234.0,99233.0,0.0021]
[1735173159947,0.10398632,99234.0,99233.0,0.0021858]
[1735173160150,0.10398632,99234.0,99233.0,0.0001858]
[1735173160353,0.10398632,99234.0,99233.0,0.0002858]
[1735173160765,0.10398632,99234.0,99233.0,0.0022858]
[1735173160967,0.10398632,99234.0,99233.0,0.0002858]
[1735173161172,0.10398632,99234.0,99233.0,0.0012858]
[1735173161377,0.10598632,99234.0,99233.0,0.0012858]
[1735173161575,0.10398632,99234.0,99233.0,0.0002858]
[1735173161995,0.10398632,99234.0,99233.0,0.0012858]
[1735173162602,0.10498632,99234.0,99233.0,0.0012858]
[1735173163254,0.10498632,99234.0,99233.0,0.0002858]
[1735173163458,0.10598632,99234.0,99233.0,0.0002858]
[1735173163876,0.11453119,99234.0,99233.0,0.0002858]
[1735173164111,0.11453119,99234.0,99233.0,0.0032858]
[1735173164632,0.11353119,99234.0,99233.0,0.0032858]
[1735173165195,0.11353119,99234.0,99233.0,0.0042858]
[1735173165797,0.11353119,99234.0,99233.0,0.0032858]
[1735173166007,0.11353119,99234.0,99233.0,0.0042858]
[1735173166205,0.11353119,99234.0,99233.0,0.0012858]
[1735173166663,0.11353119,99234.0,99233.0,0.0042858]
[1735173166839,0.11353119,99234.0,99233.0,0.00838567]
[1735173167400,0.11353119,99234.0,99233.0,0.00438567]
[1735173167600,0.11353119,99234.0,99233.0,0.00838567]
[1735173167813,0.11353119,99234.0,99233.0,0.0052858]
[1735173168013,0.13653119,99234.0,99233.0,0.0052858]
[1735173168445,0.28653119,99234.0,99233.0,0.0052858]
[1735173168653,0.28653119,99234.0,99233.0,0.0042858]
[1735173169402,0.28653119,99234.0,99233.0,0.0002858]
[1735173169603,0.28653119,99234.0,99233.0,0.0012858]
[1735173170006,0.28653119,99234.0,99233.0,0.0002858]